bitfinex/quotes_ETHUSD_20250411
["timestamp","ask_amount","ask_price","bid_price","bid_amount"]
[1744386741868,2.1967953,1563.9,1563.5,7.15798]
[1744386742072,7.14667,1563.9,1563.6,6.39548]
[1744386742235,6.39468,1563.8,1563.5,7.15798]
[1744386742430,12.78972,1563.8,1563.5,6.39578]
[1744386742627,6.39564,1563.6,1563.3,0.7523]
[1744386742831,6.39564,1563.6,1563.3,7.14887]
[1744386743046,7.423,1563.7,1563.4,6.3963]
[1744386743253,7.423,1563.7,1563.5,6.39577]
[1744386743506,7.423,1563.7,1563.5,12.79154]
[1744386743709,7.423,1563.7,1563.5,6.39577]
[1744386744466,7.423,1563.7,1563.6,7.19509]
[1744386745295,7.423,1563.7,1563.6,8.554176]
[1744386745965,20.21102,1564.0,1563.6,14.949666]
[1744386746168,6.39468,1563.8,1563.6,0.7996]
[1744386746365,6.39444,1563.9,1563.6,7.19499]
[1744386746890,6.39441,1563.9,1563.6,7.19499]
[1744386747065,6.39441,1563.9,1563.6,13.59036]
[1744386747789,13.81699,1564.0,1563.7,6.39507]
[1744386747990,6.39449,1563.9,1563.6,13.59037]
[1744386748291,6.39449,1563.9,1563.7,6.39508]
[1744386748454,15.62196712,1564.0,1563.7,6.39508]
[1744386748455,22.01599712,1564.0,1563.7,6.39508]
[1744386748654,6.39438,1563.9,1563.6,13.59036]
[1744386748856,6.39438,1563.9,1563.6,7.19497]
[1744386749692,6.39438,1563.9,1563.7,6.39508]
[1744386749890,15.62196712,1564.0,1563.7,6.39497]
[1744386750184,22.01606712,1564.0,1563.7,6.39496]
[1744386750386,7.423,1564.0,1563.9,7.21797]
[1744386750577,21.03324,1564.3,1564.0,6.39379]
[1744386750773,21.03324,1564.3,1563.9,13.61224]
[1744386750990,7.423,1564.3,1564.1,6.3934]
[1744386751572,7.423,1564.3,1564.0,6.39373]
[1744386752174,7.423,1564.3,1564.0,12.78746]
[1744386752175,13.81567,1564.3,1564.0,12.78746]
[1744386752390,7.423,1564.3,1564.1,6.39344]
[1744386752590,49.85,1564.5,1564.3,6.39227]
[1744386752888,49.85,1564.5,1564.4,6.39222]
[1744386753253,14.5828,1564.9,1564.5,6.39169]
[1744386753459,20.97324,1564.9,1564.5,12.78338]
[1744386753891,6.39063,1564.8,1564.5,6.39169]
[1744386754560,12.78139,1564.8,1564.4,14.850789]
[1744386754755,12.7816,1564.8,1564.5,6.39178]
[1744386754959,8.48804,1564.8,1564.5,6.39178]
[1744386755261,13.81225,1564.9,1564.6,6.39129]
[1744386755470,7.422,1564.9,1564.7,7.15644]
[1744386755980,7.422,1564.9,1564.7,7.22028694]
[1744386756154,7.19662,1565.1,1564.7,7.22028694]
[1744386756155,7.19662,1565.1,1564.8,6.39059]
[1744386756361,7.421,1565.2,1565.0,6.38959]
[1744386756592,7.421,1565.2,1565.0,7.15509]
[1744386757901,7.421,1565.2,1565.0,7.21898059]
[1744386758117,21.580232,1565.2,1564.9,6.39008]
[1744386758319,7.421,1565.2,1564.9,6.45395473]
[1744386759016,7.421,1565.2,1564.9,6.45393473]
[1744386759217,13.81,1565.2,1564.9,6.45393473]
[1744386759719,7.421,1565.2,1564.9,12.84396473]
[1744386760028,12.77742,1565.3,1564.9,12.84396473]
[1744386760390,6.38821,1565.4,1565.1,0.8233]
[1744386760586,12.77655,1565.4,1565.1,0.8233]
[1744386761030,6.38821,1565.4,1565.1,7.21257]
[1744386761193,12.77669,1565.4,1565.1,0.8233]
[1744386761389,12.77735,1565.3,1565.1,0.8233]
[1744386761686,6.38899,1565.2,1564.9,7.21341]
[1744386761891,6.3894,1565.1,1564.8,7.16979]
[1744386762229,12.77914,1565.1,1564.8,0.7793]
[1744386762438,7.747704,1565.1,1564.8,7.16987]
[1744386762637,1.62662,1565.4,1565.0,6.38938]
[1744386762837,26.28592,1565.5,1565.2,0.78]
[1744386763196,6.38818,1565.4,1565.2,0.78]
[1744386763395,6.38855,1565.3,1565.0,7.16968]
[1744386763694,6.38855,1565.3,1565.0,7.16965]
[1744386763925,6.38936,1565.1,1565.0,0.78]
[1744386764148,6.38936,1565.1,1564.8,7.20043]
[1744386764380,6.39056,1564.9,1564.6,0.81]
[1744386764543,6.39056,1564.9,1564.3,6.39237]
[1744386764544,6.39117,1564.7,1564.4,7.20204]
[1744386764741,6.39162,1564.6,1564.2,7.20289]
[1744386764895,20.95467,1564.7,1564.4,6.39221]
[1744386765240,6.39143,1564.6,1564.3,6.45640935]
[1744386765397,6.39143,1564.6,1564.3,0.06391935]
[1744386765398,12.78321,1564.6,1564.3,0.06391935]
[1744386765735,6.39143,1564.6,1564.3,6.45654935]
[1744386765937,12.78303,1564.6,1564.3,6.45654935]
[1744386766108,8.486973,1564.6,1564.3,6.45654935]
[1744386766312,6.39075,1564.8,1564.5,0.8065]
[1744386766611,3.7711,1564.9,1564.5,0.8065]
[1744386766801,6.39115,1564.7,1564.5,0.8065]
[1744386767195,3.7711,1564.9,1564.5,0.8065]
[1744386767196,10.1614,1564.9,1564.5,13.58997]
[1744386767443,6.39063,1564.8,1564.5,7.19817]
[1744386768147,6.39063,1564.8,1564.5,13.58987]
[1744386769405,6.39063,1564.8,1564.5,7.19817]
[1744386769608,13.80795,1565.0,1564.7,6.39087]
[1744386769807,13.80795,1565.0,1564.7,6.39086]
[1744386769808,20.19791,1565.0,1564.7,6.39086]
[1744386770033,6.39043,1564.9,1564.6,6.39134]
[1744386770342,6.39037,1564.9,1564.6,12.78268]
[1744386770540,0.8199,1565.1,1564.9,6.39003]
[1744386770707,14.61456,1565.3,1565.0,6.38972]
[1744386770906,20.1834,1565.3,1565.0,6.38972]
[1744386771542,13.79466,1565.3,1565.0,14.057415]
[1744386771744,7.406,1565.3,1565.1,0.7802]
[1744386773220,7.406,1565.3,1565.1,7.16951]
[1744386773538,7.406,1565.3,1565.1,7.23340144]
[1744386773742,7.406,1565.3,1565.2,6.38895]
[1744386773897,7.406,1565.3,1565.2,7.75118514]
[1744386775660,6.38785,1565.5,1565.2,7.75107514]
[1744386775948,12.77657,1565.4,1565.2,1.36223514]
[1744386776443,6.38826,1565.4,1565.2,1.36223514]
[1744386776646,12.77657,1565.4,1565.2,1.36223514]
[1744386776800,6.38786,1565.5,1565.2,7.75100514]
[1744386777012,6.38786,1565.5,1565.3,0.77510051]
[1744386777214,6.38786,1565.5,1565.1,13.55868]
[1744386777542,6.38814,1565.4,1565.1,7.16944]
[1744386777917,12.7766,1565.4,1565.1,7.23332631]
[1744386778228,12.77576,1565.5,1565.1,7.23332631]
[1744386778416,6.38785,1565.5,1565.2,6.38877]
[1744386778740,6.38785,1565.5,1565.2,13.50089563]
[1744386779470,7.405,1565.6,1565.3,6.38816]
[1744386779765,13.79233,1565.6,1565.3,12.84052138]
[1744386780064,20.1799,1565.6,1565.3,6.38816]
[1744386780230,13.79243,1565.6,1565.3,6.38854]
[1744386780431,13.79243,1565.6,1565.4,0.782]
[1744386780853,6.38829,1565.4,1565.1,6.38925]
[1744386781064,13.58378,1565.5,1565.2,6.38895]
[1744386781267,6.38814,1565.4,1565.1,6.38908]
[1744386781422,6.38814,1565.4,1565.1,7.2318055]
[1744386781766,6.38814,1565.4,1565.1,13.6210455]
[1744386781922,7.19576,1565.5,1565.2,6.38891]
[1744386782122,13.79243,1565.6,1565.3,6.38826]
[1744386782341,13.79243,1565.6,1565.3,12.77665]
[1744386782565,13.79243,1565.6,1565.3,7.74806359]
[1744386782566,6.38743,1565.6,1565.3,7.74806359]
[1744386782864,16.60628,1565.7,1565.4,6.38809]
[1744386783071,6.38734,1565.6,1565.3,14.13649359]
[1744386783855,12.77495,1565.6,1565.3,7.74806359]
[1744386784031,6.38734,1565.6,1565.3,7.74806359]
[1744386784228,6.38734,1565.6,1565.3,1.35980359]
[1744386784658,6.38734,1565.6,1565.3,7.74824359]
[1744386785559,6.38849,1565.4,1565.1,10.85170963]
[1744386785723,13.56058,1565.4,1565.1,7.2319555]
[1744386786265,6.38862,1565.3,1565.0,7.17517]
[1744386786450,6.38862,1565.3,1565.0,13.5648]
[1744386787038,12.77736,1565.3,1565.0,7.17515]
[1744386787228,6.38899,1565.2,1564.9,13.57372]
[1744386787624,6.38899,1565.2,1564.8,12.78102]
[1744386787625,6.38941,1565.1,1564.8,12.78102]
[1744386787932,6.38864,1565.3,1565.0,7.17995]
[1744386788137,6.38864,1565.3,1565.0,13.5697]
[1744386788460,6.38864,1565.3,1565.0,0.7902]
[1744386788661,6.38946,1565.1,1564.8,13.57112]
[1744386788958,12.779,1565.1,1564.8,7.18066]
[1744386789159,6.38946,1565.1,1564.8,7.18066]
[1744386789367,12.77741,1565.3,1564.9,6.39003]
[1744386789662,12.77741,1565.3,1565.0,6.38976]
[1744386789847,6.38866,1565.3,1565.0,6.38976]
[1744386790051,12.77734,1565.3,1565.0,6.38976]
[1744386790246,6.38897,1565.2,1564.9,6.39006]
[1744386790446,12.7781,1565.2,1564.9,6.39006]
[1744386790760,6.38959,1565.1,1564.8,7.18057]
[1744386790974,6.3898,1565.0,1564.8,0.7902]
[1744386791328,12.77972,1565.0,1564.7,6.39094]
[1744386791547,6.39027,1564.9,1564.6,13.58243]
[1744386791760,7.2125,1565.0,1564.7,6.39086]
[1744386791934,7.2125,1565.0,1564.7,12.78175]
[1744386792841,12.7817,1564.8,1564.5,6.39173]
[1744386793035,6.39022,1564.9,1564.5,12.84732183]
[1744386793563,12.7814,1564.8,1564.5,6.45559183]
[1744386793766,0.7621,1564.7,1564.3,0.8166]
[1744386793969,6.39187,1564.5,1564.3,0.8166]
[1744386794132,6.39179,1564.6,1564.3,0.8166]
[1744386794462,14.5571,1564.7,1564.4,6.39201]
[1744386794664,10.260877,1564.7,1564.5,6.39181]
[1744386794866,6.39172,1564.6,1564.3,0.8166]
[1744386795163,6.39183,1564.5,1564.2,6.39291]
[1744386795362,13.57177,1564.4,1564.1,0.8099]
[1744386795562,7.17922,1564.4,1564.1,7.20333]
[1744386795768,7.17913,1564.4,1564.1,7.20333]
[1744386795966,7.17913,1564.4,1564.2,6.39304]
[1744386795967,0.7867,1564.4,1564.2,6.39304]
[1744386796549,13.60449,1564.6,1564.2,12.78595]
[1744386796739,12.78389,1564.5,1564.2,6.39291]
[1744386797271,6.39225,1564.4,1564.1,6.3934]
[1744386797567,6.39225,1564.4,1564.1,6.39332]
[1744386797775,6.39225,1564.4,1564.1,12.78664]
[1744386797950,6.39192,1564.5,1564.2,6.39302]
[1744386798150,0.639192,1564.4,1564.2,6.39302]
[1744386798352,9.5232067,1564.6,1564.3,6.3924]
[1744386798564,15.9148467,1564.6,1564.3,6.3924]
[1744386798751,6.39193,1564.5,1564.2,0.8149]
[1744386798953,6.39193,1564.5,1564.2,6.39299]
[1744386799261,9.5232367,1564.6,1564.3,6.3926]
[1744386799461,9.5232367,1564.6,1564.3,6.3925]
[1744386800271,3.1317267,1564.6,1564.3,12.78499]
[1744386800446,20.18621,1564.7,1564.3,12.78499]
[1744386800641,6.39142,1564.6,1564.2,6.39299]
[1744386800847,6.39142,1564.6,1564.2,6.39293]
[1744386801041,6.39183,1564.5,1564.2,6.39293]
[1744386801270,6.39142,1564.6,1564.2,6.39291]
[1744386801471,6.39142,1564.6,1564.3,6.39251]
[1744386801772,2.018646,1564.6,1564.4,7.21976]
[1744386801972,7.404,1564.7,1564.5,6.39181]
[1744386802178,7.404,1564.7,1564.4,13.61182]
[1744386803076,7.404,1564.7,1564.5,6.39148]
[1744386803279,7.404,1564.7,1564.6,6.3914]
[1744386803482,18.87058,1564.9,1564.6,6.3914]
[1744386803645,0.8107,1564.7,1564.3,6.39253]
[1744386803845,6.39157,1564.6,1564.3,6.39255]
[1744386804174,7.20178,1564.7,1564.2,0.8277]
[1744386804384,7.20178,1564.7,1564.3,6.39223]
[1744386804742,9.39069,1564.8,1564.3,0.06391575]
[1744386805064,10.20139,1564.8,1564.5,6.39169]
[1744386805271,9.7403508,1564.8,1564.5,6.39169]
[1744386805578,6.391,1564.7,1564.4,7.19185]
[1744386805750,6.391,1564.7,1564.4,7.1918]
[1744386805955,6.391,1564.7,1564.4,13.5839]
[1744386806685,9.7403508,1564.8,1564.4,7.1918]
[1744386806977,6.39105,1564.7,1564.4,13.58391]
[1744386807280,7.20139,1564.8,1564.4,7.1918]
[1744386807447,13.59217,1564.8,1564.4,13.5839]
[1744386807848,0.8107,1564.8,1564.3,6.39252]
[1744386808042,6.39133,1564.7,1564.3,6.39251]
[1744386808248,6.39133,1564.7,1564.4,6.39211]
[1744386808449,6.39115,1564.7,1564.4,6.39211]
[1744386808648,12.78234,1564.7,1564.4,6.39211]
[1744386809149,1.8499554,1564.8,1564.3,6.39253]
[1744386809150,12.78325,1564.6,1564.3,6.39253]
[1744386809446,1.278325,1564.6,1564.3,6.39253]
[1744386809654,1.278325,1564.6,1564.2,0.7645]
[1744386809655,6.39117,1564.7,1564.4,12.78412]
[1744386809984,1.8499554,1564.8,1564.2,0.7645]
[1744386810155,0.8107,1564.8,1564.5,13.61662]
[1744386810691,7.20131,1564.8,1564.5,13.61662]
[1744386811087,7.20131,1564.8,1564.5,7.22481]
[1744386811558,7.20131,1564.8,1564.5,0.833]
[1744386811764,6.39103,1564.7,1564.4,13.57613]
[1744386811959,7.20131,1564.8,1564.5,6.39169]
[1744386812168,8.560468,1564.8,1564.5,6.39169]
[1744386812368,8.560468,1564.8,1564.5,12.78338]
[1744386813394,8.560468,1564.8,1564.5,6.39169]
[1744386813686,6.39112,1564.7,1564.4,6.39209]
[1744386813877,13.59224,1564.8,1564.5,6.39181]
[1744386814203,8.560614,1564.8,1564.5,6.3917]
[1744386814405,12.78156,1564.8,1564.5,6.39169]
[1744386815694,6.39069,1564.8,1564.6,6.3914]
[1744386815857,12.78167,1564.8,1564.5,6.39169]
[1744386816051,11.1967,1565.0,1564.7,6.39088]
[1744386816291,0.7758,1565.4,1564.8,0.83101162]
[1744386816478,14.55567,1565.5,1565.2,6.3887]
[1744386816678,14.55567,1565.5,1565.2,0.7671]
[1744386816679,23.038065,1565.5,1565.2,0.7671]
[1744386816880,6.38842,1565.4,1565.0,6.38956]
[1744386817093,6.38867,1565.3,1565.0,6.38956]
[1744386817994,12.77655,1565.4,1565.0,12.7792]
[1744386818211,6.38883,1565.3,1565.0,6.38956]
[1744386818503,13.416543,1565.3,1565.0,6.38956]
[1744386818680,6.38904,1565.2,1564.9,7.16869]
[1744386818998,0.7751,1565.2,1564.9,7.23253509]
[1744386819199,0.638883,1565.3,1565.0,6.38977]
[1744386819369,0.638883,1565.3,1564.9,0.84249509]
[1744386819709,0.638883,1565.3,1565.1,6.38936]
[1744386820088,0.638883,1565.3,1565.1,12.7786]
[1744386820374,7.16337,1565.4,1565.1,6.38924]
[1744386820578,7.16337,1565.4,1565.0,6.38977]
[1744386820779,7.16337,1565.4,1565.1,6.38936]
[1744386820982,15.874125,1565.5,1565.2,6.3889]
[1744386821167,23.028815,1565.5,1565.2,6.3889]
[1744386821571,10.253015,1565.5,1565.2,7.162]
[1744386821785,14.54643,1565.5,1565.2,7.162]
[1744386822001,8.1587,1565.5,1565.2,7.16192]
[1744386822499,8.1587,1565.5,1565.3,6.38854]
[1744386822801,14.54647,1565.5,1565.2,7.16192]
[1744386822978,6.38815,1565.4,1565.1,7.20475]
[1744386823406,12.77648,1565.4,1565.1,7.20475]
[1744386823881,6.38815,1565.4,1565.1,13.59399]
[1744386824073,14.54653,1565.5,1565.2,6.38889]
[1744386826178,0.7995,1565.4,1565.2,6.38894]
[1744386826378,13.77976,1565.5,1565.2,6.38894]
[1744386826581,7.392,1565.5,1565.3,6.38818]
[1744386826806,7.392,1565.5,1565.3,7.03338657]
[1744386827207,7.392,1565.5,1565.3,13.42178657]
[1744386827802,7.392,1565.5,1565.3,7.03338657]
[1744386828114,7.392,1565.5,1565.4,6.38814]
[1744386828313,7.392,1565.5,1565.4,7.16474]
[1744386828613,7.392,1565.5,1565.4,8.58455266]
[1744386828819,7.392,1565.5,1565.3,7.82278657]
[1744386829118,7.392,1565.5,1565.1,7.19256]
[1744386829119,14.56606,1565.5,1565.1,7.19256]
[1744386829821,6.38815,1565.4,1565.1,7.19256]
[1744386829990,12.77646,1565.4,1565.1,7.19256]
[1744386830620,6.38815,1565.4,1565.1,7.19256]
[1744386830781,6.38815,1565.4,1565.1,8.55079]
[1744386830985,12.77652,1565.4,1565.1,8.55079]
[1744386831204,6.38815,1565.4,1565.1,14.94002]
[1744386831410,6.38871,1565.3,1565.0,6.38967]
[1744386831583,12.77742,1565.3,1565.0,6.38967]
[1744386831786,6.38949,1565.1,1564.7,7.18159]
[1744386832090,12.77996,1565.0,1564.7,7.18158]
[1744386832293,12.77984,1565.0,1564.7,7.24548301]
[1744386832493,6.39021,1564.9,1564.7,0.7906]
[1744386832691,6.39021,1564.9,1564.5,10.82382709]
[1744386833036,6.3902,1564.9,1564.6,12.78255]
[1744386833275,6.3902,1564.9,1564.6,12.84645496]
[1744386833593,6.3902,1564.9,1564.6,12.78255]
[1744386833937,6.3902,1564.9,1564.6,12.78253]
[1744386834093,7.16867,1565.0,1564.7,6.39098]
[1744386834293,13.76445,1565.1,1564.7,6.39098]
[1744386834508,13.76445,1565.1,1564.8,6.39044]
[1744386834707,13.76445,1565.1,1564.8,12.78088]
[1744386835307,7.375,1565.1,1564.9,6.39004]
[1744386835737,7.20605,1565.3,1565.0,6.38966]
[1744386835941,0.8174,1565.3,1565.0,13.53302]
[1744386836121,7.20599,1565.3,1565.0,8.496662]
[1744386836896,13.76425,1565.4,1565.0,8.56058425]
[1744386837495,13.76425,1565.4,1565.0,8.496692]
[1744386837698,6.38862,1565.3,1565.0,14.886352]
[1744386837894,13.76425,1565.4,1565.1,6.38926]
[1744386838094,13.76425,1565.4,1565.1,12.77851]
[1744386838344,13.76425,1565.4,1565.1,14.2670412]
[1744386838531,7.376,1565.4,1565.1,14.2670412]
[1744386839132,13.76417,1565.4,1565.1,7.8777912]
[1744386839329,13.76417,1565.4,1565.1,7.8777712]
[1744386839498,7.376,1565.4,1565.2,6.38894]
[1744386839699,7.376,1565.4,1565.2,7.81561112]
[1744386839931,7.376,1565.4,1565.2,7.81552112]
[1744386840117,7.376,1565.4,1565.2,12.77767]
[1744386840321,7.376,1565.4,1565.2,6.38882]
[1744386840521,7.376,1565.4,1565.2,12.77764]
[1744386840716,7.376,1565.4,1565.3,6.38855]
[1744386841228,13.66421,1565.4,1565.1,6.38914]
[1744386841411,20.86494,1565.4,1565.1,6.38914]
[1744386841796,14.47651,1565.4,1565.0,7.14342]
[1744386842132,6.38855,1565.3,1565.0,14.247482]
[1744386842431,20.86503,1565.4,1565.1,6.38934]
[1744386843543,14.47651,1565.4,1565.1,6.38926]
[1744386843726,14.47651,1565.4,1565.0,1.53193062]
[1744386843931,6.38856,1565.3,1565.0,7.14327]
[1744386844136,14.47651,1565.4,1565.1,6.38926]
[1744386844316,6.38883,1565.3,1565.0,7.14334]
[1744386844640,12.77821,1565.2,1564.9,6.39007]
[1744386845544,6.38946,1565.1,1564.8,13.60515]
[1744386845732,13.76608,1565.0,1564.6,7.17744]
[1744386845928,6.39024,1564.9,1564.6,6.39134]
[1744386846130,13.76585,1565.0,1564.7,6.39085]
[1744386846310,6.39041,1564.9,1564.6,6.39126]
[1744386846510,6.3907,1564.8,1564.5,7.15422]
[1744386846707,6.39035,1564.9,1564.6,6.39139]
[1744386846922,12.78073,1564.9,1564.6,6.3913]
[1744386847106,6.39068,1564.8,1564.5,14.261372]
[1744386847333,6.39112,1564.7,1564.5,0.715422]
[1744386847547,12.78326,1564.6,1564.3,6.39252]
[1744386847842,6.39185,1564.5,1564.2,7.21787]
[1744386848033,7.17857,1564.4,1564.1,6.39332]
[1744386848441,7.17857,1564.4,1564.0,12.703459]
[1744386848643,6.39277,1564.3,1564.0,12.703439]
[1744386848815,12.78571,1564.3,1564.0,11.900839]
[1744386849214,6.39313,1564.2,1564.0,5.507119]
[1744386849409,12.7856,1564.3,1564.0,5.507119]
[1744386849613,6.39277,1564.3,1564.0,5.507119]
[1744386849817,6.39277,1564.3,1564.0,6.39384]
[1744386850034,12.78558,1564.3,1563.9,12.78824]
[1744386850345,1.4289737,1564.3,1563.8,0.8026]
[1744386850536,6.39364,1564.1,1563.8,0.8026]
[1744386850731,20.16337,1564.2,1563.8,13.59178]
[1744386850947,20.16337,1564.2,1563.8,7.19714]
[1744386851149,7.377,1564.2,1564.0,6.39379]
[1744386851317,7.377,1564.2,1564.0,6.39371]
[1744386851520,7.377,1564.2,1564.0,7.033081]
[1744386851715,13.77019,1564.2,1563.9,6.39418]
[1744386852443,20.16338,1564.2,1563.9,6.39418]
[1744386852646,13.77019,1564.2,1563.9,6.39418]
[1744386852944,13.77019,1564.2,1563.9,6.39415]
[1744386853141,13.77019,1564.2,1563.9,12.78829]
[1744386853967,13.77019,1564.2,1563.9,6.39414]
[1744386854558,7.377,1564.2,1564.0,6.39348]
[1744386854746,7.377,1564.2,1564.1,6.39345]
[1744386855869,0.8284,1564.8,1564.6,6.39138]
[1744386856018,6.38995,1565.0,1564.6,6.39128]
[1744386856019,0.8284,1565.0,1564.6,6.39128]
[1744386856215,0.8284,1565.0,1564.5,3.62094709]
[1744386856216,6.39021,1564.9,1564.5,6.39158]
[1744386856421,6.39021,1564.9,1564.6,6.39129]
[1744386856723,13.60832,1565.0,1564.6,6.39129]
[1744386856929,7.21824,1565.0,1564.7,6.39085]
[1744386857126,6.3902,1564.9,1564.6,7.17619]
[1744386857316,6.3902,1564.9,1564.6,12.78256]
[1744386857522,6.3902,1564.9,1564.6,6.39128]
[1744386857718,6.3902,1564.9,1564.6,7.7334938]
[1744386857917,12.78055,1564.9,1564.6,7.7334938]
[1744386858967,6.39063,1564.8,1564.6,1.3422138]
[1744386859460,6.39063,1564.8,1564.5,12.78332]
[1744386860254,6.39025,1564.9,1564.6,6.39121]
[1744386860458,6.3903,1564.9,1564.6,6.39121]
[1744386860658,12.78075,1564.9,1564.6,6.39121]
[1744386860859,0.8284,1565.0,1564.6,6.39121]
[1744386861060,12.78069,1564.9,1564.6,7.752012]
[1744386862171,6.39034,1564.9,1564.6,7.752012]
[1744386862371,12.78083,1564.9,1564.6,7.752012]
[1744386862556,6.39034,1564.9,1564.6,7.752012]
[1744386862749,6.39062,1564.8,1564.6,1.360802]
[1744386862952,6.39062,1564.8,1564.5,7.2168]
[1744386863371,6.39062,1564.8,1564.5,13.6085]
[1744386863669,6.39062,1564.8,1564.5,6.3917]
[1744386864072,7.21819,1565.0,1564.7,6.39085]
[1744386864372,0.8284,1565.0,1564.7,6.39085]
[1744386864590,7.21829,1565.0,1564.7,6.39085]
[1744386864871,9.38944,1565.1,1564.8,6.39048]
[1744386865043,9.38944,1565.1,1564.7,7.669064]
[1744386865044,3.0,1565.1,1564.7,7.669064]
[1744386865241,6.38997,1565.0,1564.7,6.39085]
[1744386865756,6.38997,1565.0,1564.7,12.78174]
[1744386866375,6.38993,1565.0,1564.6,6.45521449]
[1744386866574,6.3907,1564.8,1564.5,0.8109]
[1744386866778,12.7823,1564.7,1564.4,6.3921]
[1744386866975,6.39144,1564.6,1564.3,7.15832]
[1744386867287,6.39197,1564.5,1564.1,7.16839]
[1744386867488,12.78419,1564.5,1564.2,6.393]
[1744386867851,0.7755,1564.6,1564.1,7.16839]
[1744386867852,6.39229,1564.4,1564.1,7.16839]
[1744386868055,6.39315,1564.2,1563.9,7.92182842]
[1744386868267,12.78652,1564.2,1563.9,7.92179842]
[1744386868454,12.78652,1564.2,1563.9,7.16814]
[1744386868655,6.39315,1564.2,1563.9,7.16814]
[1744386870286,7.17552,1564.3,1563.9,7.16814]
[1744386870492,13.56837,1564.3,1564.0,6.39374]
[1744386871070,7.17552,1564.3,1564.0,6.39374]
[1744386871272,0.7828,1564.3,1564.0,14.143672]
[1744386871782,13.75534,1564.4,1564.1,6.39343]
[1744386872182,20.14793,1564.4,1564.0,14.143672]
[1744386872584,13.75534,1564.4,1564.1,6.39342]
[1744386872766,13.75534,1564.4,1564.1,6.39334]
[1744386872964,20.14772,1564.4,1564.1,6.39334]
[1744386873361,6.39271,1564.3,1564.0,7.749972]
[1744386873696,12.78556,1564.3,1564.0,7.749972]
[1744386873898,6.39271,1564.3,1564.0,7.749942]
[1744386874193,7.363,1564.4,1564.1,0.7749942]
[1744386874495,7.363,1564.4,1564.2,7.17295]
[1744386875001,6.39157,1564.6,1564.2,7.23691659]
[1744386875302,6.39184,1564.5,1564.2,7.17299]
[1744386875490,12.78383,1564.5,1564.2,7.17299]
[1744386875995,6.39223,1564.4,1564.1,13.5617042]
[1744386876159,12.78388,1564.5,1564.2,6.39298]
[1744386876360,6.39185,1564.5,1564.3,0.7563]
[1744386876788,6.39147,1564.6,1564.3,7.14888]
[1744386876989,12.78309,1564.6,1564.3,7.14888]
[1744386877191,12.78309,1564.6,1563.8,6.39439]
[1744386877192,0.814,1564.4,1563.9,13.57856]
[1744386877364,12.786,1564.3,1563.9,13.57856]
[1744386877564,6.3931,1564.2,1563.9,7.18435]
[1744386877784,6.3931,1564.2,1563.8,12.78918]
[1744386877994,6.39373,1564.1,1563.8,6.39459]
[1744386878173,6.39373,1564.1,1563.8,14.50921471]
[1744386878493,6.39373,1564.1,1563.8,8.11462471]
[1744386878674,6.39373,1564.1,1563.8,14.50917471]
[1744386879059,12.78646,1564.2,1563.8,14.50917471]
[1744386879263,12.78646,1564.2,1563.8,14.50918471]
[1744386880467,6.39316,1564.2,1563.9,6.39409]
[1744386880863,6.39316,1564.2,1563.9,12.78823]
[1744386881068,6.39316,1564.2,1563.9,6.39409]
[1744386881268,12.78636,1564.2,1563.9,6.39409]
[1744386881468,6.39316,1564.2,1563.9,6.39409]
[1744386881724,6.39316,1564.2,1563.9,12.78823]
[1744386881887,20.15056,1564.3,1564.0,6.3938]
[1744386882200,22.29535903,1564.3,1564.0,6.3938]
[1744386882504,6.39305,1564.2,1563.9,6.39409]
[1744386882707,12.78629,1564.2,1563.9,6.39409]
[1744386883201,6.39306,1564.2,1563.9,6.39415]
[1744386883402,6.39306,1564.2,1563.9,7.19805]
[1744386883803,12.78632,1564.2,1563.9,7.19805]
[1744386883993,14.801552,1564.2,1563.9,6.39415]
[1744386884611,8.408292,1564.2,1563.9,12.78829]
[1744386884803,14.801462,1564.2,1563.9,6.39414]
[1744386885472,7.2255,1564.1,1563.8,12.78914]
[1744386887198,13.61908,1564.1,1563.8,6.39457]
[1744386887386,7.2255,1564.1,1563.8,12.78914]
[1744386888105,0.832,1564.1,1563.7,0.8019]
[1744386888309,6.39314,1564.2,1563.9,6.39405]
[1744386888699,6.39314,1564.2,1563.9,12.78821]
[1744386889080,12.78635,1564.2,1563.9,6.39405]
[1744386889282,20.93727,1564.3,1563.9,6.39405]
[1744386889484,17.29461801,1564.3,1564.0,7.20573]
[1744386889713,17.29461801,1564.3,1564.0,7.20564]
[1744386889714,23.68741801,1564.3,1564.0,7.20564]
[1744386890012,14.54434,1564.3,1564.0,13.59939]
[1744386890183,8.1516,1564.3,1564.0,0.8119]
[1744386890392,7.366,1564.3,1564.1,12.78662]
[1744386890680,6.09,1564.4,1564.3,6.39263]
[1744386890904,57.199,1564.6,1564.3,7.671067]
[1744386891095,57.199,1564.6,1564.4,7.1868]
[1744386891485,63.59048,1564.6,1564.4,0.7946]
[1744386892209,7.1423,1564.7,1564.4,13.57881]
[1744386892520,6.3906,1564.8,1564.5,12.7834]
[1744386892679,20.88504,1564.9,1564.5,12.7834]
[1744386892884,14.49447,1564.9,1564.6,6.39134]
[1744386893079,20.88491,1564.9,1564.6,6.39134]
[1744386893304,7.352,1564.9,1564.7,6.39089]
[1744386893512,7.352,1564.9,1564.7,13.55548]
[1744386893713,7.352,1564.9,1564.8,6.39059]
[1744386894616,7.352,1564.9,1564.8,7.35089371]
[1744386895819,6.39025,1564.9,1564.7,0.7737]